bitfinex/quotes_BTCUSD_20240617
["timestamp","ask_amount","ask_price","bid_price","bid_amount"]
[1718601989371,0.00085,66493.0,66492.0,1.8269766]
[1718601991093,0.00085,66493.0,66492.0,1.8169766]
[1718601991295,0.00085,66493.0,66492.0,1.8269766]
[1718601994523,0.00085,66493.0,66492.0,1.8169766]
[1718601995559,0.00085,66493.0,66492.0,1.5161886]
[1718601996210,0.00085,66493.0,66492.0,1.5261886]
[1718601996413,0.00085,66493.0,66492.0,1.5161886]
[1718601996615,0.00085,66493.0,66492.0,1.14179317]
[1718601996824,0.00085,66493.0,66492.0,1.51619749]
[1718601997750,0.00085,66493.0,66492.0,1.51519749]
[1718601998185,0.00085,66493.0,66492.0,1.51419749]
[1718601998397,0.00085,66493.0,66492.0,1.51619749]
[1718601998655,0.00085,66493.0,66492.0,1.51919749]
[1718602000329,0.00085,66493.0,66492.0,0.65572749]
[1718602000529,0.01275566,66493.0,66492.0,0.80612149]
[1718602000734,0.00085,66493.0,66492.0,1.40769749]
[1718602001536,0.00085,66493.0,66492.0,1.10690949]
[1718602002438,0.00085,66493.0,66492.0,1.10691]
[1718602004389,0.00085,66493.0,66492.0,0.7949064]
[1718602004604,0.00085,66493.0,66492.0,1.10692255]
[1718602006057,0.01275566,66493.0,66492.0,1.10692255]
[1718602006284,0.00085,66493.0,66492.0,0.43171717]
[1718602006479,0.01275566,66493.0,66492.0,0.43171717]
[1718602006753,0.00085,66493.0,66492.0,0.43171717]
[1718602006989,0.01275566,66493.0,66492.0,0.43171717]
[1718602007378,0.01275566,66493.0,66492.0,0.74373172]
[1718602007548,0.01275566,66493.0,66492.0,0.68132881]
[1718602007756,0.01275566,66493.0,66492.0,0.43171717]
[1718602007965,0.01275566,66493.0,66492.0,0.7437315]
[1718602008164,0.01275566,66493.0,66492.0,0.43171717]
[1718602008370,0.01275566,66493.0,66492.0,0.80613459]
[1718602010642,0.01275566,66493.0,66492.0,1.10692259]
[1718602011530,0.01275566,66493.0,66492.0,0.79490808]
[1718602011735,0.01275566,66493.0,66492.0,1.10692391]
[1718602012786,0.00085,66493.0,66492.0,1.10692391]
[1718602013655,0.00085,66493.0,66492.0,1.11692391]
[1718602014414,0.00085,66493.0,66492.0,1.53031191]
[1718602015651,0.00085,66493.0,66492.0,1.83109991]
[1718602016293,0.00085,66493.0,66492.0,1.82109991]
[1718602017776,0.00085,66493.0,66492.0,1.83109991]
[1718602017978,0.00085,66493.0,66492.0,1.82109991]
[1718602018101,0.00085,66493.0,66492.0,1.83109991]
[1718602020891,0.00085,66493.0,66492.0,1.83109634]
[1718602023877,0.00085,66493.0,66492.0,1.96580126]
[1718602024134,0.00085,66493.0,66492.0,1.83109634]
[1718602026367,0.00085,66493.0,66492.0,1.8310955]
[1718602028078,0.00085,66517.0,66512.0,0.300694]
[1718602028300,0.60660536,66515.0,66513.0,0.12480633]
[1718602028502,0.05115,66517.0,66514.0,0.12480633]
[1718602028716,0.05115,66517.0,66515.0,0.12480633]
[1718602028717,0.1208,66516.0,66515.0,0.12480633]
[1718602028924,0.1711,66516.0,66515.0,0.12480633]
[1718602029156,0.00085,66517.0,66516.0,0.17027438]
[1718602029383,0.00085,66517.0,66516.0,0.59575971]
[1718602029601,0.01285,66517.0,66516.0,0.29508071]
[1718602029822,0.01285,66517.0,66516.0,0.12480633]
[1718602030269,0.01285,66517.0,66516.0,0.27689412]
[1718602030501,0.01285,66517.0,66516.0,1.5657055]
[1718602030697,0.01285,66517.0,66516.0,1.63304709]
[1718602030947,0.01285,66517.0,66516.0,1.5657055]
[1718602030948,0.02685,66517.0,66516.0,1.5657055]
[1718602031154,0.01485,66517.0,66516.0,1.5154055]
[1718602031364,0.01485,66517.0,66516.0,1.58261995]
[1718602031365,0.01785,66517.0,66516.0,1.58261995]
[1718602031564,0.01785,66517.0,66516.0,1.43941995]
[1718602031816,0.02185,66517.0,66516.0,0.38704395]
[1718602032035,0.01885,66517.0,66516.0,0.38704395]
[1718602032269,0.01885,66517.0,66516.0,0.38258203]
[1718602032270,0.02285,66517.0,66516.0,0.38258203]
[1718602032470,0.03285263,66517.0,66516.0,0.38258203]
[1718602032672,0.02285,66517.0,66516.0,0.38258203]
[1718602033457,0.02285,66517.0,66516.0,0.3198295]
[1718602033905,0.08795,66517.0,66516.0,0.14474171]
[1718602034161,0.09795263,66517.0,66516.0,0.14474171]
[1718602036216,0.03285263,66517.0,66516.0,0.14474171]
[1718602036622,0.03285263,66517.0,66516.0,0.17027438]
[1718602036821,0.03285263,66517.0,66516.0,0.29503736]
[1718602037548,0.03285263,66517.0,66516.0,0.59571636]
[1718602037759,0.03285263,66517.0,66516.0,0.59571619]
[1718602037919,0.03285263,66517.0,66516.0,1.35916198]
[1718602038120,0.00085,66532.0,66516.0,1.73833809]
[1718602038351,0.00085,66532.0,66531.0,0.01993538]
[1718602038727,0.00085,66532.0,66531.0,0.12476281]
[1718602039395,0.00185,66532.0,66531.0,0.12476281]
[1718602039560,0.00185,66532.0,66531.0,0.12474748]
[1718602040570,0.152153,66532.0,66531.0,0.12474748]
[1718602041224,0.202453,66532.0,66531.0,0.12474748]
[1718602041673,0.00385,66532.0,66531.0,0.27783527]
[1718602041909,0.00385,66532.0,66531.0,1.07329765]
[1718602042660,0.00085,66532.0,66531.0,0.77068665]
[1718602043118,0.00285,66532.0,66531.0,0.77068665]
[1718602043306,0.00285,66532.0,66531.0,0.77067578]
[1718602043580,0.00285,66532.0,66531.0,0.47006478]
[1718602044196,0.0107123,66532.0,66531.0,0.47006478]
[1718602044839,0.00285,66532.0,66531.0,1.25938678]
[1718602045051,0.00285,66532.0,66531.0,1.05877578]
[1718602045263,0.00285,66532.0,66531.0,1.35938678]
[1718602045895,0.00085,66532.0,66531.0,1.35938678]
[1718602046317,0.00085,66532.0,66531.0,1.05977578]
[1718602046524,0.00085,66532.0,66531.0,1.36038678]
[1718602047715,0.00085,66532.0,66531.0,1.37823539]
[1718602048215,0.00185,66532.0,66531.0,1.37823539]
[1718602049388,0.00185,66532.0,66531.0,1.37822337]
[1718602049845,0.00185,66532.0,66531.0,1.38822337]
[1718602050054,0.00185,66532.0,66531.0,1.37822337]
[1718602050297,0.00185,66532.0,66531.0,1.39616494]
[1718602050513,0.00185,66532.0,66531.0,1.40616494]
[1718602051124,0.00018142,66544.0,66543.0,1.26688438]
[1718602051390,0.00018142,66544.0,66543.0,1.06558276]
[1718602051561,0.00018142,66544.0,66543.0,0.52865738]
[1718602051881,0.00018142,66544.0,66543.0,1.23935029]
[1718602052131,0.00018142,66544.0,66543.0,1.24935029]
[1718602052349,0.00018142,66544.0,66543.0,1.67437514]
[1718602053340,0.00118142,66544.0,66543.0,1.70237514]
[1718602054125,0.00018142,66544.0,66543.0,1.68837514]
[1718602054786,0.00018142,66544.0,66543.0,1.70237514]
[1718602055129,0.00018142,66544.0,66543.0,1.71637514]
[1718602055609,0.00018142,66544.0,66543.0,1.9034296]
[1718602055815,0.00018142,66544.0,66543.0,1.71637122]
[1718602055990,0.00018142,66544.0,66543.0,1.65607122]
[1718602056219,0.00018142,66544.0,66543.0,1.9034198]
[1718602056434,0.00018142,66544.0,66543.0,1.71637122]
[1718602056809,0.00018142,66544.0,66543.0,1.9034198]
[1718602057011,0.00018142,66544.0,66543.0,1.71637122]
[1718602057220,0.00018142,66544.0,66543.0,1.9034315]
[1718602058229,0.00018142,66544.0,66543.0,1.59167217]
[1718602058392,0.00018142,66544.0,66543.0,1.90343162]
[1718602059519,0.00018142,66544.0,66543.0,1.91198162]
[1718602060138,0.00018142,66544.0,66543.0,1.90198162]
[1718602060744,0.15045742,66544.0,66543.0,0.63433262]
[1718602060964,0.00685549,66544.0,66543.0,0.63433262]
[1718602061231,0.00018142,66544.0,66543.0,0.78461062]
[1718602061714,0.00018142,66544.0,66543.0,0.77061062]
[1718602061917,0.00018142,66544.0,66543.0,0.75661062]
[1718602062220,0.00018142,66544.0,66543.0,0.75663965]
[1718602062446,0.00018142,66544.0,66543.0,0.77963965]
[1718602062882,0.00018142,66544.0,66543.0,0.80659932]
[1718602063505,0.00018142,66544.0,66543.0,0.79259932]
[1718602063918,0.00118142,66544.0,66543.0,0.80059932]
[1718602064497,0.00118142,66544.0,66543.0,1.10115632]
[1718602065304,0.00118142,66544.0,66543.0,0.80059932]
[1718602066105,0.00118142,66544.0,66543.0,1.40171332]
[1718602067204,0.00118142,66544.0,66543.0,1.10115632]
[1718602067397,0.00118142,66544.0,66543.0,1.41171332]
[1718602067521,0.00118142,66544.0,66543.0,1.84847032]
[1718602068184,0.00118142,66544.0,66543.0,1.54791332]
[1718602068387,0.00118142,66544.0,66543.0,1.23612484]
[1718602068949,0.00118142,66544.0,66543.0,1.22612484]
[1718602069174,0.00118142,66544.0,66543.0,0.33853284]
[1718602069397,0.00118142,66544.0,66543.0,0.48881084]
[1718602069611,0.00118142,66544.0,66543.0,0.80057324]
[1718602070236,0.00118142,66544.0,66543.0,1.41168724]
[1718602070434,0.00118142,66544.0,66543.0,1.71224424]
[1718602070656,0.00118142,66544.0,66543.0,1.41168724]
[1718602071286,0.00118142,66544.0,66543.0,1.71224424]
[1718602071965,0.00118142,66544.0,66543.0,1.85674424]
[1718602073371,0.00118142,66544.0,66543.0,1.79124424]
[1718602073597,0.00118142,66544.0,66543.0,1.85374424]
[1718602073828,0.00118142,66544.0,66543.0,1.90404424]
[1718602075713,0.00118142,66544.0,66543.0,1.60348724]
[1718602075924,0.00118142,66544.0,66543.0,1.54318724]
[1718602076139,0.00118142,66544.0,66543.0,0.80057324]
[1718602076354,0.00118142,66544.0,66543.0,1.10113024]
[1718602077360,0.00118142,66544.0,66543.0,0.65029524]
[1718602078248,0.12188142,66544.0,66543.0,0.65029524]
[1718602079211,0.00118142,66544.0,66543.0,0.80057324]
[1718602080433,0.00118142,66544.0,66543.0,0.65029524]
[1718602080645,0.30173442,66544.0,66543.0,0.63035986]
[1718602080839,0.00118142,66544.0,66543.0,0.62180986]
[1718602081218,0.00118142,66544.0,66543.0,0.44672207]
[1718602081588,0.00118142,66544.0,66543.0,0.46665745]
[1718602083479,0.00203142,66544.0,66543.0,0.44672207]
[1718602083700,0.00203142,66544.0,66543.0,0.3287624]
[1718602083701,0.75341342,66544.0,66543.0,0.3287624]
[1718602083896,0.57086042,66544.0,66543.0,0.3287624]
[1718602084162,0.87141342,66544.0,66543.0,0.15964931]
[1718602084351,0.87141342,66544.0,66543.0,0.14170496]
[1718602085420,0.12003142,66544.0,66543.0,0.14170496]
[1718602085829,0.27030742,66544.0,66543.0,0.14170496]
[1718602086263,0.12003142,66544.0,66543.0,0.14170496]
[1718602086494,0.57086042,66544.0,66543.0,0.14170496]
[1718602086980,0.87141342,66544.0,66543.0,0.14170496]
[1718602087423,0.92171342,66544.0,66543.0,0.14170496]
[1718602088053,1.22226642,66544.0,66543.0,0.14170496]
[1718602088266,0.92171342,66544.0,66543.0,0.14170496]
[1718602088477,1.22226642,66544.0,66543.0,0.017]
[1718602088700,1.22226642,66544.0,66543.0,0.14172799]
[1718602089573,1.22226642,66544.0,66543.0,0.017]
[1718602090213,0.92171342,66544.0,66543.0,0.008]
[1718602090682,0.92171342,66544.0,66543.0,0.009]
[1718602090886,0.92071342,66544.0,66543.0,0.001]
[1718602091100,0.92271342,66544.0,66543.0,0.001]
[1718602091546,0.92071342,66544.0,66543.0,0.001]
[1718602092015,0.92771342,66544.0,66543.0,0.002]
[1718602092456,0.92771342,66544.0,66543.0,0.001]
[1718602092669,0.92871342,66544.0,66543.0,0.002]
[1718602092899,0.81071342,66544.0,66543.0,0.002]
[1718602093100,0.00903142,66544.0,66543.0,0.33911182]
[1718602093311,0.00903142,66544.0,66543.0,0.9442822]
[1718602093518,0.00903142,66544.0,66543.0,0.9672822]
[1718602093734,0.00903142,66544.0,66543.0,0.9169822]
[1718602093939,0.00203142,66544.0,66543.0,0.9159822]
[1718602094140,0.00103142,66544.0,66543.0,0.9149822]
[1718602094350,0.00203142,66544.0,66543.0,0.9429822]
[1718602094785,0.00103142,66544.0,66543.0,1.00574663]
[1718602095201,0.00203142,66544.0,66543.0,1.31630363]
[1718602095410,0.00203142,66544.0,66543.0,1.00574663]
[1718602095618,0.00103142,66544.0,66543.0,0.99574663]
[1718602095800,0.00103142,66544.0,66543.0,0.98174663]
[1718602095965,0.00203142,66544.0,66543.0,1.31430363]
[1718602096165,0.00203142,66544.0,66543.0,1.30230363]
[1718602096638,0.00203142,66544.0,66543.0,1.36548637]
[1718602096833,0.00203142,66544.0,66543.0,1.40575697]
[1718602097077,0.00203142,66544.0,66543.0,1.42336878]
[1718602097462,0.00203142,66544.0,66543.0,1.07251178]
[1718602097664,0.00203142,66544.0,66543.0,1.37306878]
[1718602098214,0.00203142,66544.0,66543.0,1.38306878]
[1718602098565,0.00203142,66544.0,66543.0,1.68362578]
[1718602098782,0.00203142,66544.0,66543.0,1.44542093]
[1718602098984,0.00203142,66544.0,66543.0,1.81705928]
[1718602099397,0.00203142,66544.0,66543.0,1.51650228]
[1718602099828,0.00203142,66544.0,66543.0,1.81749677]
[1718602100040,0.00203142,66544.0,66543.0,1.51693977]
[1718602100535,0.00203142,66544.0,66543.0,1.42748304]
[1718602100740,0.00203142,66544.0,66543.0,1.72804004]
[1718602101689,0.00203142,66544.0,66543.0,1.36513089]
[1718602101908,0.00203142,66544.0,66543.0,1.50693897]
[1718602102136,0.00203142,66544.0,66543.0,1.56723897]
[1718602102798,0.00203142,66544.0,66543.0,1.55723897]
[1718602103113,0.00203142,66544.0,66543.0,1.55723688]
[1718602103337,0.00203142,66544.0,66543.0,1.86779388]
[1718602103972,0.00203142,66544.0,66543.0,2.07720849]
[1718602104432,0.00203142,66544.0,66543.0,1.96538888]
[1718602104854,0.00203142,66544.0,66543.0,2.07719909]
[1718602106127,0.00203142,66544.0,66543.0,1.96538888]
[1718602106788,0.00203142,66544.0,66543.0,1.96537482]
[1718602107236,0.00203142,66544.0,66543.0,1.97392482]
[1718602107893,0.00203142,66544.0,66543.0,1.92362482]
[1718602108095,0.00203142,66544.0,66543.0,2.08574942]
[1718602108739,0.00203142,66544.0,66543.0,0.80916504]
[1718602108959,0.00203142,66544.0,66543.0,0.15524695]
[1718602109175,0.00203142,66544.0,66543.0,0.17518233]
[1718602109863,0.00203142,66544.0,66543.0,0.17520463]
[1718602110501,0.00203142,66544.0,66543.0,0.32548263]
[1718602110710,0.00203142,66544.0,66543.0,0.17520463]
[1718602110925,0.00203142,66544.0,66543.0,0.31693263]
[1718602112761,0.00203142,66544.0,66543.0,0.61748963]
[1718602114180,0.00203142,66544.0,66543.0,1.58492847]
[1718602114412,0.00203142,66544.0,66543.0,1.23963442]
[1718602114618,0.00203142,66544.0,66543.0,1.30198827]
[1718602115032,0.00203142,66544.0,66543.0,1.23962382]
[1718602115249,0.00203142,66544.0,66543.0,1.30197742]
[1718602115661,0.00203142,66544.0,66543.0,1.28436613]
[1718602115808,0.00203142,66544.0,66543.0,1.23962382]
[1718602116011,0.00203142,66544.0,66543.0,1.30197795]
[1718602116391,0.00203142,66544.0,66543.0,1.00142095]
[1718602116612,0.00203142,66544.0,66543.0,0.63686395]
[1718602116817,0.00203142,66544.0,66543.0,0.53675171]
[1718602117021,0.00203142,66544.0,66543.0,0.49200982]
[1718602117394,0.00203142,66544.0,66543.0,0.79256682]
[1718602118103,0.00203142,66544.0,66543.0,0.83730871]
[1718602118773,0.00203142,66544.0,66543.0,1.15547822]
[1718602118990,0.00203142,66544.0,66543.0,1.30197822]
[1718602119340,0.00203142,66544.0,66543.0,1.31197822]
[1718602119558,0.00203142,66544.0,66543.0,1.30197822]
[1718602120327,0.00203142,66544.0,66543.0,1.2659222]
[1718602120533,0.00203142,66544.0,66543.0,1.68164079]
[1718602120833,0.00203142,66544.0,66543.0,1.71453522]
[1718602121345,0.00203142,66544.0,66543.0,1.70453522]
[1718602121758,0.00203142,66544.0,66543.0,1.71453522]
[1718602122811,0.00203142,66544.0,66543.0,1.9015982]
[1718602123242,0.00203142,66544.0,66543.0,1.71453522]
[1718602124865,0.00203142,66544.0,66543.0,1.80400447]
[1718602125507,0.00203142,66544.0,66543.0,1.42744747]
[1718602125645,0.00203142,66544.0,66543.0,1.0220194]
[1718602125855,0.00203142,66544.0,66543.0,1.3225764]
[1718602128006,0.00203142,66544.0,66543.0,1.25547822]
[1718602128569,0.00203142,66544.0,66543.0,1.25547637]
[1718602128984,0.00203142,66544.0,66543.0,1.26547637]
[1718602129190,0.00203142,66544.0,66543.0,1.25547637]
[1718602130436,0.00203142,66544.0,66543.0,1.13076772]
[1718602130808,0.00203142,66544.0,66543.0,1.14076772]
[1718602131214,0.00203142,66544.0,66543.0,1.20312022]
[1718602132675,0.00203142,66544.0,66543.0,1.26547278]
[1718602132904,0.00203142,66544.0,66543.0,1.39017792]
[1718602133307,0.00203142,66544.0,66543.0,1.26547278]
[1718602133520,0.00203142,66544.0,66543.0,1.39017792]
[1718602134820,0.00203142,66544.0,66543.0,2.02289264]
[1718602136176,0.00203142,66544.0,66543.0,1.26667864]
[1718602136336,0.00203142,66544.0,66543.0,1.27667864]
[1718602136742,0.00203142,66544.0,66543.0,1.57723564]
[1718602138012,0.00203142,66544.0,66543.0,1.63958705]
[1718602140372,0.00203142,66544.0,66543.0,1.93014405]
[1718602140552,0.00203142,66544.0,66543.0,1.62958705]
[1718602140717,0.00203142,66544.0,66543.0,1.63958705]
[1718602141430,0.00203142,66544.0,66543.0,1.63958636]
[1718602142035,0.00203142,66544.0,66543.0,2.07934336]
[1718602143152,0.00203142,66544.0,66543.0,1.77878636]
[1718602143572,0.00203142,66544.0,66543.0,2.07934336]
[1718602145188,0.00203142,66544.0,66543.0,2.17934336]
[1718602145389,0.00203142,66544.0,66543.0,2.21370356]
[1718602145621,0.00203142,66544.0,66543.0,2.27944336]
[1718602145737,0.00203142,66544.0,66543.0,2.58000036]
[1718602145941,0.00203142,66544.0,66543.0,2.67032531]
[1718602146139,0.00203142,66544.0,66543.0,2.4832677]
[1718602146344,0.00203142,66544.0,66543.0,2.2327107]
[1718602146761,0.00203142,66544.0,66543.0,2.2207107]
[1718602147201,0.00203142,66544.0,66543.0,2.1347107]
[1718602147462,0.00203142,66544.0,66543.0,2.2347107]
[1718602147664,0.00103142,66544.0,66543.0,2.1247107]
[1718602147866,0.00103142,66544.0,66543.0,2.1387107]
[1718602149647,0.00103142,66544.0,66543.0,2.2387107]
[1718602150585,0.00103142,66544.0,66543.0,2.1387107]
[1718602151370,0.00103142,66544.0,66543.0,2.04838575]
[1718602152332,0.00103142,66544.0,66543.0,1.99828575]
[1718602152586,0.00103142,66544.0,66543.0,0.20002317]
[1718602152730,0.45186042,66544.0,66543.0,0.6436866]
[1718602152934,0.87001342,66544.0,66543.0,0.32695547]
[1718602153209,0.87001342,66544.0,66543.0,0.25980557]
[1718602153414,0.87001342,66544.0,66543.0,0.15268964]
[1718602153625,1.17056642,66544.0,66543.0,0.15268964]
[1718602154070,0.87001342,66544.0,66543.0,0.13868964]
[1718602154255,0.87001342,66544.0,66543.0,0.14772113]
[1718602154601,0.87001342,66544.0,66543.0,0.13372113]
[1718602154813,0.87001342,66544.0,66543.0,0.13872113]
[1718602155011,0.87001342,66544.0,66543.0,0.14572113]
[1718602155430,1.17056642,66544.0,66543.0,0.14572113]
[1718602155742,1.17056642,66544.0,66543.0,0.13872113]
[1718602155945,1.17056642,66544.0,66543.0,0.14172113]
[1718602159091,1.17056642,66544.0,66543.0,0.14172272]
[1718602160645,1.22066642,66544.0,66543.0,0.14172272]
[1718602165405,0.00103142,66544.0,66543.0,0.16165814]
[1718602165633,0.15130742,66544.0,66543.0,0.16165814]
[1718602166186,0.15130742,66544.0,66543.0,0.14172276]
[1718602166671,0.15130742,66544.0,66543.0,0.14172095]
[1718602167503,1.10926642,66544.0,66543.0,0.14172095]
[1718602167722,1.15936642,66544.0,66543.0,0.14172095]
[1718602173294,1.10926642,66544.0,66543.0,0.14172095]
[1718602175325,1.10926642,66544.0,66543.0,0.14172268]
[1718602177770,1.40981942,66544.0,66543.0,0.14172268]
[1718602177973,1.47221942,66544.0,66543.0,0.017]
[1718602179357,1.47221942,66544.0,66543.0,0.003]
[1718602179571,0.751505,66533.0,66532.0,0.000935]
[1718602179772,0.801605,66533.0,66532.0,0.000935]
[1718602180199,0.801605,66533.0,66532.0,0.12568416]
[1718602180200,1.102207,66533.0,66532.0,0.12568416]
[1718602180400,1.102207,66533.0,66532.0,0.000935]
[1718602181214,1.102207,66533.0,66532.0,0.005935]
[1718602182298,1.102207,66533.0,66532.0,0.008935]
[1718602182736,1.102207,66533.0,66532.0,0.02887038]
[1718602182938,0.150301,66533.0,66532.0,0.02887038]
[1718602183369,0.150301,66533.0,66532.0,0.15361761]
[1718602183370,0.450903,66533.0,66532.0,0.15361761]
[1718602183545,0.150301,66533.0,66532.0,0.15361761]
[1718602183882,0.450903,66533.0,66532.0,0.15361761]
[1718602184548,0.450903,66533.0,66532.0,0.02887038]
[1718602184759,0.751505,66533.0,66532.0,0.008935]
[1718602185536,0.35069,66536.0,66534.0,0.01993538]
[1718602185537,0.150297,66535.0,66534.0,0.01993538]
[1718602185742,0.30059,66536.0,66532.0,0.008935]
[1718602185743,0.150301,66533.0,66532.0,0.02887038]
[1718602186146,0.450903,66533.0,66532.0,0.02887038]
[1718602186528,0.450903,66533.0,66532.0,0.02587038]
[1718602187395,0.450903,66533.0,66532.0,0.005935]
[1718602187396,0.150301,66533.0,66532.0,0.005935]
[1718602188291,0.450903,66533.0,66532.0,0.005935]
[1718602188690,0.450903,66533.0,66532.0,0.008935]
[1718602191710,0.751505,66533.0,66532.0,0.008935]
[1718602192906,0.801605,66533.0,66532.0,0.008935]
[1718602197193,1.221407,66533.0,66532.0,0.008935]
[1718602200619,0.751505,66533.0,66532.0,0.008935]
[1718602200794,0.801605,66533.0,66532.0,0.008935]
[1718602201000,1.102207,66533.0,66532.0,0.008935]
[1718602202179,1.102207,66533.0,66532.0,0.02887038]
[1718602202401,1.052107,66533.0,66532.0,0.02887038]
[1718602202578,1.102207,66533.0,66532.0,0.02887038]
[1718602202722,1.102207,66533.0,66532.0,0.008935]
[1718602203941,1.67449679,66533.0,66532.0,0.008935]
[1718602204162,2.07509879,66533.0,66532.0,0.008935]
[1718602204368,2.33359879,66533.0,66532.0,0.008935]
[1718602204790,2.33359879,66533.0,66532.0,0.005935]
[1718602205016,2.33359879,66533.0,66532.0,0.000935]
[1718602205693,2.33459879,66533.0,66532.0,0.000935]
[1718602205911,1.170513,66520.0,66519.0,0.04975164]
[1718602206148,1.220613,66520.0,66519.0,0.04975164]
[1718602206358,1.052345,66518.0,66517.0,0.000935]
[1718602207654,1.102445,66518.0,66517.0,0.000935]
[1718602208103,1.052345,66518.0,66517.0,0.000935]
[1718602208319,1.103445,66518.0,66517.0,0.000935]
[1718602208552,1.104445,66518.0,66517.0,0.001935]
[1718602211101,0.453005,66518.0,66517.0,0.001935]
[1718602211308,0.503105,66518.0,66517.0,0.001935]
[1718602212072,0.803775,66518.0,66517.0,0.001935]
[1718602212478,0.453005,66518.0,66517.0,0.001935]
[1718602212686,0.503105,66518.0,66517.0,0.001935]
[1718602213172,0.803775,66518.0,66517.0,0.001935]
[1718602214946,0.801775,66518.0,66517.0,0.000935]
[1718602215146,0.802775,66518.0,66517.0,0.000935]
[1718602215542,0.802775,66518.0,66517.0,0.02087038]
[1718602215543,0.001,66518.0,66517.0,0.02087038]
[1718602215754,0.201435,66518.0,66517.0,0.02087038]
[1718602215960,0.201435,66518.0,66517.0,0.000935]
[1718602216128,0.802775,66518.0,66517.0,0.000935]
[1718602217023,0.803775,66518.0,66517.0,0.000935]
[1718602217378,0.81130994,66518.0,66517.0,0.000935]
[1718602220519,1.11197994,66518.0,66517.0,0.000935]
[1718602220723,1.53144994,66518.0,66517.0,0.000935]
[1718602220925,1.23077994,66518.0,66517.0,0.000935]
[1718602224401,1.53144994,66518.0,66517.0,0.000935]
[1718602224996,1.23077994,66518.0,66517.0,0.000935]
[1718602225203,1.53144994,66518.0,66517.0,0.000935]
[1718602225415,1.22877994,66518.0,66517.0,0.000935]
[1718602225627,1.32494476,66518.0,66517.0,0.000935]
[1718602225829,1.32594476,66518.0,66517.0,0.000935]
[1718602226031,1.22977994,66518.0,66517.0,0.000935]
[1718602226842,1.23177994,66518.0,66517.0,0.000935]
[1718602227060,1.22977994,66518.0,66517.0,0.000935]
[1718602227264,1.22877994,66518.0,66517.0,0.000935]
[1718602227585,1.23677994,66518.0,66517.0,0.001935]
[1718602228260,1.53744994,66518.0,66517.0,0.001935]
[1718602228459,1.23677994,66518.0,66517.0,0.001935]
[1718602229452,1.37045793,66518.0,66517.0,0.001935]
[1718602229657,1.33677994,66518.0,66517.0,0.001935]
[1718602230065,1.63744994,66518.0,66517.0,0.001935]
[1718602230621,1.53744994,66518.0,66517.0,0.001935]
[1718602230832,1.63744994,66518.0,66517.0,0.001935]
[1718602231666,1.78953773,66518.0,66517.0,0.001935]
[1718602231865,1.88953773,66518.0,66517.0,0.001935]
[1718602234441,2.04162552,66518.0,66517.0,0.001935]
[1718602234642,1.99152552,66518.0,66517.0,0.001935]
[1718602234855,2.04162552,66518.0,66517.0,0.001935]
[1718602235028,2.05098615,66518.0,66517.0,0.001935]
[1718602235227,2.05098615,66518.0,66517.0,0.000935]
[1718602235432,2.04598615,66518.0,66517.0,0.000935]
[1718602235693,2.04798615,66518.0,66517.0,0.001935]
[1718602236083,2.05098615,66518.0,66517.0,0.002935]
[1718602237400,2.05098634,66518.0,66517.0,0.002935]
[1718602237611,2.04162552,66518.0,66517.0,0.002935]
[1718602238670,2.34229552,66518.0,66517.0,0.002935]
[1718602239483,2.50059552,66518.0,66517.0,0.002935]
[1718602240092,2.50995647,66518.0,66517.0,0.002935]
[1718602241322,2.20928647,66518.0,66517.0,0.002935]
[1718602241527,2.10928647,66518.0,66517.0,0.002935]
[1718602241684,2.20928647,66518.0,66517.0,0.002935]
[1718602244105,2.10928647,66518.0,66517.0,0.002935]
[1718602245211,2.05918647,66518.0,66517.0,0.002935]
[1718602245429,2.10928647,66518.0,66517.0,0.002935]
[1718602247430,2.05918647,66518.0,66517.0,0.002935]
[1718602247635,2.10928647,66518.0,66517.0,0.002935]
[1718602248882,2.20928647,66518.0,66517.0,0.002935]
[1718602249587,2.10928647,66518.0,66517.0,0.002935]
[1718602251300,2.09992552,66518.0,66517.0,0.002935]
[1718602251503,2.05954976,66518.0,66517.0,0.002935]
[1718602251703,2.19992552,66518.0,66517.0,0.002935]
[1718602252408,2.2094746,66518.0,66517.0,0.002935]
[1718602253897,2.5101446,66518.0,66517.0,0.002935]
[1718602255523,2.2094746,66518.0,66517.0,0.002935]
[1718602257187,2.19992552,66518.0,66517.0,0.002935]
[1718602258377,2.50059552,66518.0,66517.0,0.002935]
[1718602258583,2.50996553,66518.0,66517.0,0.002935]
[1718602259845,2.58739845,66518.0,66517.0,0.002935]
[1718602260057,2.72730344,66518.0,66517.0,0.002935]
[1718602260391,2.69340739,66518.0,66517.0,0.002935]
[1718602260823,2.69354637,66518.0,66517.0,0.002935]
[1718602261484,2.72745189,66518.0,66517.0,0.002935]
[1718602261699,2.77745189,66518.0,66517.0,0.002935]
[1718602262241,2.73242403,66518.0,66517.0,0.002935]
[1718602263286,2.58033624,66518.0,66517.0,0.002935]
[1718602263687,2.24070325,66518.0,66517.0,0.002935]
[1718602263890,2.19080325,66518.0,66517.0,0.002935]
[1718602264241,2.29080325,66518.0,66517.0,0.002935]
[1718602264429,2.60835949,66518.0,66517.0,0.002935]
[1718602264635,2.49147325,66518.0,66517.0,0.002935]
[1718602264796,2.20794334,66518.0,66517.0,0.002935]
[1718602265361,1.93514334,66518.0,66517.0,0.002935]
[1718602265561,1.52844973,66518.0,66517.0,0.148835]
[1718602265713,1.57854973,66518.0,66517.0,0.148835]
[1718602265924,1.62854973,66518.0,66517.0,0.148835]
[1718602266122,1.91971074,66518.0,66517.0,0.148835]
[1718602266324,1.93060356,66518.0,66517.0,0.148835]
[1718602266727,1.61279347,66518.0,66517.0,0.148835]
[1718602266924,1.63111039,66518.0,66517.0,0.148835]
[1718602267359,1.93178039,66518.0,66517.0,0.148835]
[1718602267929,1.93179796,66518.0,66517.0,0.148835]
[1718602269602,1.63112796,66518.0,66517.0,0.148835]
[1718602269799,1.58112796,66518.0,66517.0,0.148835]
[1718602270064,1.5808651,66518.0,66517.0,0.148835]
[1718602270285,1.56919591,66518.0,66517.0,0.148835]
[1718602270966,0.90803812,66518.0,66517.0,0.148835]
[1718602271165,0.9346052,66518.0,66517.0,0.148835]
[1718602271367,1.2352752,66518.0,66517.0,0.148835]
[1718602272732,1.2322752,66518.0,66517.0,0.147835]
[1718602273090,1.2362752,66518.0,66517.0,0.147835]
[1718602273531,1.2472752,66518.0,66517.0,0.148835]
[1718602274380,0.8965052,66518.0,66517.0,0.148835]
[1718602274554,0.92930994,66518.0,66517.0,0.148835]
[1718602274767,0.77920994,66518.0,66517.0,0.148835]
[1718602275138,0.82930994,66518.0,66517.0,0.148835]
[1718602275341,1.12997994,66518.0,66517.0,0.148835]
[1718602275548,0.82930994,66518.0,66517.0,0.148835]